[Event "NOR-chT Codanserien 2017-18"]
[Site "Oslo"]
[Date "2018.01.13"]
[Round "5"]
[White "Svendsen, Bertil"]
[Black "Muhseen Abdullah Mohammed"]
[Result "1-0"]
[ECO "A40"]
[WhiteElo "2222"]
[BlackElo "2207"]
[Annotator "NA"]
[PlyCount "163"]
[EventDate "2018.??.??"]
[EventType "team-tourn"]
[EventCountry "NOR"]
[SourceTitle "playchess.com"]
[Source "ChessBase"]
[SourceQuality "1"]
[TimeControl "40/5400+30:1800+30"]

1. d4 {[%emt 0:00:00]} g6 {[%emt 0:00:07]} 2. Nf3 {[%emt 0:00:16]} Bg7 {[%emt 0:00:17]} 3. g3 {[%emt 0:00:33]} b5 {[%emt 0:00:43]} 4. Qd3 {[%emt 0:01:43]} a6 {[%emt 0:01:11]} 5. Bg2 {[%emt 0:01:22]} Bb7 {[%emt 0:00:08]} 6. Nbd2 {[%emt 0:01:31]} Nf6 {[%emt 0:05:37]} 7. O-O {[%emt 0:00:51]} O-O {[%emt 0:00:31]} 8. e4 {[%emt 0:12:09]} d6 {[%emt 0:00:19]} 9. Re1 {[%emt 0:02:35]} c5 {[%emt 0:05:34]} 10. c3 {[%emt 0:05:59]} Nc6 {[%emt 0:06:18]} 11. a3 {[%emt 0:06:46]} Qb6 {[%emt 0:02:58]} 12. h3 {[%emt 0:13:32]} Rfd8 {[%emt 0:05:45]} 13. d5 {[%emt 0:13:03]} c4 {[%emt 0:02:31]} 14. Qc2 {[%emt 0:03:18]} Na5 {[%emt 0:02:49]} 15. Nd4 {[%emt 0:04:17]} Nd7 {[%emt 0:03:37]} 16. N2f3 {[%emt 0:00:10]} Nc5 {[%emt 0:00:41]} 17. Be3 {[%emt 0:01:29]} Qc7 {[%emt 0:00:08]} 18. Nd2 {[%emt 0:08:27]} e6 {[%emt 0:03:24]} 19. Rab1 {[%emt 0:02:11]} Rac8 {[%emt 0:04:47]} 20. dxe6 {[%emt 0:03:42]} fxe6 {[%emt 0:02:22]} 21. h4 {[%emt 0:00:06]} Rf8 {[%emt 0:01:03]} 22. Re2 {[%emt 0:00:34]} Qb8 {[%emt 0:07:06]} 23. Bh3 {[%emt 0:06:29]} Rce8 {[%emt 0:04:05]} 24. Ree1 {[%emt 0:01:58]} Qa8 {[%emt 0:07:10]} 25. Bg2 {[%emt 0:00:04]} e5 {[%emt 0:02:17]} 26. Ne2 {[%emt 0:00:24]} Nab3 {[%emt 0:00:04]} 27. Nc1 {[%emt 0:04:39]} Nxd2 {[%emt 0:10:38]} 28. Bxd2 {[%emt 0:00:06]} Rf7 {[%emt 0:00:25]} 29. b4 {[%emt 0:01:43]} Nd7 {[%emt 0:02:39]} 30. Bg5 {[%emt 0:02:12]} h6 {[%emt 0:01:11]} 31. Be3 {[%emt 0:00:49]} Nf6 {[%emt 0:00:31]} 32. Bb6 {[%emt 0:00:25]} Bc6 {[%emt 0:00:45]} 33. f3 {[%emt 0:00:26]} d5 {[%emt 0:00:28]} 34. exd5 {[%emt 0:00:21]} Bxd5 {[%emt 0:00:44]} 35. Rf1 {[%emt 0:01:55]} Kh7 {[%emt 0:01:32]} 36. Be3 {[%emt 0:01:13]} h5 {[%emt 0:01:58]} 37. Qe2 {[%emt 0:00:19]} e4 {[%emt 0:01:25]} 38. f4 {[%emt 0:00:16]} Ng4 {[%emt 0:00:56]} 39. Bh3 {[%emt 0:00:37]} Nh6 {[%emt 0:04:11]} 40. f5 {[%emt 0:00:50]} Ref8 {[%emt 0:34:31]} 41. fxg6+ {[%emt 0:05:35]} Kxg6 {[%emt 0:00:00]} 42. Rxf7 {[%emt 0:00:24]} Rxf7 {[%emt 0:00:00]} 43. Qd2 {[%emt 0:01:13]} Bb7 {[%emt 0:00:00]} 44. Ne2 {[%emt 0:01:19]} Bc8 {[%emt 0:00:00]} 45. Bg2 {[%emt 0:05:52]} Bg4 {[%emt 0:00:00]} 46. Nd4 {[%emt 0:02:29]} Nf5 {[%emt 0:00:00]} 47. Nxf5 {[%emt 0:02:02]} Rxf5 {[%emt 0:00:00]} 48. Bf4 {[%emt 0:01:09]} Bf3 {[%emt 0:00:00]} 49. Bxf3 {[%emt 0:03:11]} exf3 {[%emt 0:00:00]} 50. Qe3 {[%emt 0:01:00]} Rf8 {[%emt 0:00:00]} 51. Re1 {[%emt 0:03:32]} Qc6 {[%emt 0:00:00]} 52. Qe7 {[%emt 0:03:12]} Rf6 {[%emt 0:00:00]} 53. Kf2 {[%emt 0:00:53]} Qb6+ {[%emt 0:04:26]} 54. Kxf3 {[%emt 0:02:14]} Qc6+ {[%emt 0:00:18]} 55. Kf2 {[%emt 0:01:14]} Bf8 {[%emt 0:02:48]} 56. Qd8 {[%emt 0:01:41]} Qb6+ {[%emt 0:00:29]} 57. Qxb6 {[%emt 0:00:07]} Rxb6 {[%emt 0:00:06]} 58. Re5 {[%emt 0:00:57]} Bh6 {[%emt 0:01:40]} 59. Bxh6 {[%emt 0:00:16]} Kxh6 {[%emt 0:00:01]} 60. Rd5 {[%emt 0:00:20]} Rf6+ {[%emt 0:00:39]} 61. Ke3 {[%emt 0:00:34]} Rg6 {[%emt 0:00:03]} 62. Kf4 {[%emt 0:00:41]} Rg4+ {[%emt 0:00:02]} 63. Kf3 {[%emt 0:00:11]} Rg6 {[%emt 0:00:02]} 64. a4 {[%emt 0:00:42]} bxa4 {[%emt 0:00:38]} 65. Ra5 {[%emt 0:00:07]} Rd6 {[%emt 0:00:05]} 66. Rxa4 {[%emt 0:00:27]} Rd3+ {[%emt 0:00:08]} 67. Kf4 {[%emt 0:00:21]} Rxc3 {[%emt 0:00:08]} 68. Rxa6+ {[%emt 0:00:08]} Kg7 {[%emt 0:00:38]} 69. Rc6 {[%emt 0:00:12]} Kh7 {[%emt 0:00:12]} 70. Rc7+ {[%emt 0:02:38]} Kg6 {[%emt 0:00:19]} 71. Rc6+ {[%emt 0:00:04]} Kg7 {[%emt 0:00:19]} 72. Rc5 {[%emt 0:01:11]} Kg6 {[%emt 0:00:34]} 73. b5 {[%emt 0:00:13]} Rb3 {[%emt 0:00:02]} 74. Rg5+ {[%emt 0:00:41]} Kh6 {[%emt 0:00:27]} 75. Ke4 {[%emt 0:00:17]} Rd3 {[%emt 0:03:03]} 76. Rc5 {[%emt 0:00:26]} Rb3 {[%emt 0:00:21]} 77. Kd4 {[%emt 0:00:33]} c3 {[%emt 0:00:12]} 78. Kd3 {[%emt 0:00:13]} c2+ {[%emt 0:00:29]} 79. Kxc2 {[%emt 0:00:05]} Rxg3 {[%emt 0:00:01]} 80. b6 {[%emt 0:00:19]} Rg6 {[%emt 0:00:07]} 81. Rb5 {[%emt 0:00:08]} Rg8 {[%emt 0:00:08]} 82. Kb3 {[%emt 0:00:31]} 1-0

[Event "NOR-chT Codanserien 2017-18"]
[Site "Oslo"]
[Date "2018.01.13"]
[Round "5"]
[White "Sahl, Sheila Barth"]
[Black "Johansen, Terje"]
[Result "0-1"]
[ECO "B03"]
[WhiteElo "2178"]
[BlackElo "2252"]
[Annotator "NA"]
[PlyCount "106"]
[EventDate "2018.??.??"]
[EventType "team-tourn"]
[EventCountry "NOR"]
[SourceTitle "playchess.com"]
[Source "ChessBase"]
[SourceQuality "1"]
[TimeControl "40/5400+30:1800+30"]

1. e4 {[%emt 0:00:00]} Nf6 2. e5 {[%emt 0:00:02]} Nd5 {[%emt 0:00:29]} 3. d4 {[%emt 0:00:07]} d6 {[%emt 0:00:09]} 4. c4 {[%emt 0:00:10]} Nb6 {[%emt 0:00:07]} 5. f4 {[%emt 0:00:19]} dxe5 {[%emt 0:00:16]} 6. fxe5 {[%emt 0:00:07]} Nc6 {[%emt 0:00:07]} 7. Be3 {[%emt 0:00:11]} Bf5 {[%emt 0:00:13]} 8. Nc3 {[%emt 0:02:46]} e6 {[%emt 0:00:11]} 9. Nf3 {[%emt 0:00:20]} Be7 {[%emt 0:00:49]} 10. d5 {[%emt 0:03:10]} exd5 {[%emt 0:00:08]} 11. cxd5 {[%emt 0:00:40]} Nb4 {[%emt 0:00:31]} 12. Nd4 {[%emt 0:03:07]} Bd7 {[%emt 0:00:18]} 13. e6 {[%emt 0:11:35]} fxe6 {[%emt 0:00:10]} 14. dxe6 {[%emt 0:00:13]} Bc6 {[%emt 0:00:07]} 15. a3 {[%emt 0:09:36]} Bh4+ {[%emt 0:06:33]} 16. g3 {[%emt 0:00:20]} Bxh1 {[%emt 0:00:55]} 17. axb4 {[%emt 0:00:07]} Bf6 {[%emt 0:03:18]} 18. Bd3 {[%emt 0:06:45]} Qe7 {[%emt 0:03:45]} 19. Qh5+ {[%emt 0:22:35]} g6 {[%emt 0:00:54]} 20. Bxg6+ {[%emt 0:02:16]} hxg6 {[%emt 0:00:50]} 21. Qxg6+ {[%emt 0:00:06]} Kd8 {[%emt 0:11:01]} 22. O-O-O {[%emt 0:03:42]} Nd5 {[%emt 0:09:58]} 23. Nf5 {[%emt 0:09:54]} Qxe6 {[%emt 0:02:58]} 24. Bd4 {[%emt 0:01:43]} Kc8 {[%emt 0:04:19]} 25. Nxd5 {[%emt 0:06:56]} Bxd5 {[%emt 0:10:17]} 26. Bxf6 {[%emt 0:04:00]} Kb8 {[%emt 0:28:31]} 27. Rxd5 {[%emt 0:03:19]} Qxd5 {[%emt 0:00:10]} 28. Bxh8 {[%emt 0:00:23]} Qh1+ {[%emt 0:00:12]} 29. Kd2 {[%emt 0:00:54]} Qxh2+ {[%emt 0:00:07]} 30. Ke3 {[%emt 0:04:54]} Qxh8 {[%emt 0:00:08]} 31. Nd4 {[%emt 0:03:29]} Qe5+ {[%emt 0:02:45]} 32. Kd3 {[%emt 0:00:05]} a6 {[%emt 0:00:22]} 33. g4 {[%emt 0:00:37]} Ka7 {[%emt 0:00:28]} 34. Qf5 {[%emt 0:01:45]} Qd6 {[%emt 0:04:31]} 35. g5 {[%emt 0:00:39]} Rg8 {[%emt 0:03:19]} 36. Kc4 {[%emt 0:00:30]} Kb8 {[%emt 0:02:33]} 37. Ne6 {[%emt 0:00:22]} Qc6+ {[%emt 0:02:21]} 38. Kb3 {[%emt 0:00:34]} Re8 {[%emt 0:00:29]} 39. Nc5 {[%emt 0:00:28]} b6 {[%emt 0:02:10]} 40. Na4 {[%emt 0:00:41]} Qe6+ {[%emt 0:32:01]} 41. Qxe6 {[%emt 0:02:08]} Rxe6 {[%emt 0:00:00]} 42. Nc3 {[%emt 0:00:08]} Re5 {[%emt 0:00:00]} 43. Ka4 {[%emt 0:02:14]} Rxg5 {[%emt 0:00:00]} 44. b5 {[%emt 0:00:17]} Rg4+ {[%emt 0:00:00]} 45. Ka3 {[%emt 0:00:23]} a5 {[%emt 0:00:00]} 46. Nd5 {[%emt 0:01:32]} Rg5 {[%emt 0:00:00]} 47. Nc3 {[%emt 0:00:16]} Rc5 {[%emt 0:00:00]} 48. Kb3 {[%emt 0:00:23]} Kc8 {[%emt 0:00:00]} 49. Kc2 {[%emt 0:00:04]} Kd7 {[%emt 0:00:00]} 50. Kd3 {[%emt 0:00:04]} Kd6 {[%emt 0:00:00]} 51. Ne4+ {[%emt 0:00:15]} Kd5 {[%emt 0:00:00]} 52. Nf6+ {[%emt 0:00:07]} Ke6 {[%emt 0:00:00]} 53. Ne8 {[%emt 0:00:13]} Ke7 {[%emt 0:00:00]} 0-1

[Event "NOR-chT Codanserien 2017-18"]
[Site "Oslo"]
[Date "2018.01.13"]
[Round "5"]
[White "Strand, Hakon"]
[Black "Berg, Johan"]
[Result "1/2-1/2"]
[ECO "A33"]
[WhiteElo "2173"]
[BlackElo "2212"]
[Annotator "NA"]
[PlyCount "63"]
[EventDate "2018.??.??"]
[EventType "team-tourn"]
[EventCountry "NOR"]
[SourceTitle "playchess.com"]
[Source "ChessBase"]
[SourceQuality "1"]
[TimeControl "40/5400+30:1800+30"]

1. d4 {[%emt 0:00:00]} Nf6 {[%emt 0:01:15]} 2. c4 {[%emt 0:00:00]} c5 {[%emt 0:02:31]} 3. Nf3 {[%emt 0:03:46]} cxd4 {[%emt 0:04:00]} 4. Nxd4 {[%emt 0:00:12]} Nc6 {[%emt 0:01:00]} 5. Nc3 {[%emt 0:02:29]} e6 {[%emt 0:03:33]} 6. g3 {[%emt 0:08:09]} a6 {[%emt 0:08:43]} 7. Bg2 {[%emt 0:01:35]} Qc7 {[%emt 0:00:19]} 8. Nc2 {[%emt 0:10:39]} Be7 {[%emt 0:04:44]} 9. O-O {[%emt 0:03:24]} b6 {[%emt 0:02:20]} 10. Bf4 {[%emt 0:07:56]} d6 {[%emt 0:01:25]} 11. Rc1 {[%emt 0:00:50]} Bb7 {[%emt 0:04:13]} 12. Ne3 {[%emt 0:07:14]} Ne5 {[%emt 0:05:44]} 13. Qa4+ {[%emt 0:09:58]} Nfd7 {[%emt 0:01:05]} 14. Bxe5 {[%emt 0:09:25]} dxe5 {[%emt 0:00:16]} 15. Rfd1 {[%emt 0:01:09]} Rd8 {[%emt 0:02:28]} 16. b4 {[%emt 0:20:38]} O-O {[%emt 0:02:01]} 17. c5 {[%emt 0:00:54]} Bxg2 {[%emt 0:13:13]} 18. Kxg2 {[%emt 0:01:30]} bxc5 {[%emt 0:01:03]} 19. Qxa6 {[%emt 0:00:29]} Bg5 {[%emt 0:14:30]} 20. Nb5 {[%emt 0:02:39]} Qb8 {[%emt 0:01:12]} 21. Qc6 {[%emt 0:03:34]} Rc8 {[%emt 0:05:08]} 22. Qxd7 {[%emt 0:01:37]} Rfd8 {[%emt 0:02:15]} 23. Qa7 {[%emt 0:00:05]} Qxb5 {[%emt 0:00:52]} 24. Rxd8+ {[%emt 0:01:16]} Rxd8 {[%emt 0:01:33]} 25. Qxc5 {[%emt 0:00:46]} Qxe2 {[%emt 0:01:51]} 26. Rc2 {[%emt 0:00:44]} Bxe3 {[%emt 0:04:52]} 27. Rxe2 {[%emt 0:00:06]} Bxc5 {[%emt 0:00:04]} 28. bxc5 {[%emt 0:00:05]} f6 {[%emt 0:01:06]} 29. Rc2 {[%emt 0:01:01]} Kf7 {[%emt 0:03:24]} 30. Kf3 {[%emt 0:00:29]} Ke7 {[%emt 0:00:44]} 31. Rb2 {[%emt 0:01:17]} Rd7 {[%emt 0:03:06]} 32. Ke3 {[%emt 0:00:39]} 1/2-1/2

[Event "NOR-chT Codanserien 2017-18"]
[Site "Oslo"]
[Date "2018.01.13"]
[Round "5"]
[White "Diesen, Bruce"]
[Black "Elseth, Roar"]
[Result "0-1"]
[ECO "C95"]
[WhiteElo "2170"]
[BlackElo "2325"]
[Annotator "NA"]
[PlyCount "66"]
[EventDate "2018.??.??"]
[EventType "team-tourn"]
[EventCountry "NOR"]
[SourceTitle "playchess.com"]
[Source "ChessBase"]
[SourceQuality "1"]
[TimeControl "40/5400+30:1800+30"]

1. e4 e5 2. Nf3 Nc6 3. Bb5 a6 4. Ba4 Nf6 5. O-O Be7 6. Re1 b5 7. Bb3 d6 8. c3 O-O 9. h3 Nb8 10. d4 Nbd7 11. Nbd2 Bb7 12. a4 c5 13. Bc2 Re8 14. Qe2 Qb6 15. d5 c4 16. Nf1 Bf8 17. Bg5 h6 18. Be3 Nc5 19. Ng3 Qc7 20. Nh4 g6 21. Qd2 Kh7 22. f4 exf4 23. Bxf4 bxa4 24. Nhf5 gxf5 25. Nxf5 Ncxe4 26. Nxh6 Qc5+ 27. Kh2 Qxd5 28. Qe3 Bxh6 29. Bxh6 Qh5 30. Qb6 Kxh6 31. Qxb7 Ng4+ 32. Kh1 Ng3+ 33. Kg1 Qc5+ 0-1

[Event "NOR-chT Codanserien 2017-18"]
[Site "Oslo"]
[Date "2018.01.13"]
[Round "5"]
[White "Thanke, Bror"]
[Black "Guttulsrud, Odd Martin"]
[Result "1-0"]
[ECO "A05"]
[WhiteElo "2154"]
[BlackElo "2268"]
[Annotator "NA"]
[PlyCount "125"]
[EventDate "2018.??.??"]
[EventType "team-tourn"]
[EventCountry "NOR"]
[SourceTitle "playchess.com"]
[Source "ChessBase"]
[SourceQuality "1"]
[TimeControl "40/5400+30:1800+30"]

1. Nf3 {[%emt 0:00:00]} Nf6 {[%emt 0:00:19]} 2. c4 {[%emt 0:00:07]} g6 {[%emt 0:00:08]} 3. Nc3 {[%emt 0:00:12]} Bg7 {[%emt 0:00:26]} 4. d4 {[%emt 0:03:03]} d6 {[%emt 0:00:11]} 5. e4 {[%emt 0:00:28]} O-O {[%emt 0:00:24]} 6. h3 {[%emt 0:00:50]} c5 {[%emt 0:01:26]} 7. Be2 {[%emt 0:01:11]} cxd4 {[%emt 0:01:47]} 8. Nxd4 {[%emt 0:00:08]} Nc6 {[%emt 0:00:02]} 9. Be3 {[%emt 0:01:16]} a6 {[%emt 0:01:19]} 10. O-O {[%emt 0:01:25]} Bd7 {[%emt 0:00:07]} 11. Rc1 {[%emt 0:04:54]} Rb8 {[%emt 0:00:42]} 12. b3 {[%emt 0:04:14]} Qa5 {[%emt 0:08:11]} 13. Rc2 {[%emt 0:09:54]} b5 {[%emt 0:19:56]} 14. Nd5 {[%emt 0:24:04]} Nxd5 {[%emt 0:09:05]} 15. Nxc6 {[%emt 0:01:50]} Bxc6 {[%emt 0:18:32]} 16. cxd5 {[%emt 0:00:11]} Bd7 {[%emt 0:00:13]} 17. Bg4 {[%emt 0:01:25]} f5 {[%emt 0:09:12]} 18. Bf3 {[%emt 0:11:16]} Rbc8 {[%emt 0:02:39]} 19. Bg5 {[%emt 0:01:33]} Kf7 {[%emt 0:09:16]} 20. exf5 {[%emt 0:01:33]} Bxf5 {[%emt 0:00:54]} 21. Re2 {[%emt 0:03:49]} Rfe8 {[%emt 0:03:36]} 22. Rfe1 {[%emt 0:02:28]} Be5 {[%emt 0:01:45]} 23. Bg4 {[%emt 0:08:04]} Bxg4 {[%emt 0:01:18]} 24. hxg4 {[%emt 0:00:03]} Qc3 {[%emt 0:04:12]} 25. Re3 {[%emt 0:03:47]} Qc2 {[%emt 0:00:47]} 26. Qf3+ {[%emt 0:00:34]} Kg8 {[%emt 0:00:40]} 27. R3e2 {[%emt 0:02:24]} Qc3 {[%emt 0:01:48]} 28. Qe4 {[%emt 0:00:52]} Rc7 {[%emt 0:01:20]} 29. f4 {[%emt 0:07:00]} Bf6 {[%emt 0:00:50]} 30. Qe6+ {[%emt 0:00:37]} Kg7 {[%emt 0:00:27]} 31. Bxf6+ {[%emt 0:02:54]} Qxf6 {[%emt 0:00:07]} 32. Qe4 {[%emt 0:00:40]} Rf8 {[%emt 0:00:51]} 33. g3 {[%emt 0:00:55]} Rf7 {[%emt 0:01:08]} 34. g5 {[%emt 0:00:07]} Qc3 {[%emt 0:00:07]} 35. Re3 {[%emt 0:00:17]} Qb2 {[%emt 0:00:21]} 36. R3e2 {[%emt 0:00:17]} Qc3 {[%emt 0:00:06]} 37. Qe3 {[%emt 0:00:20]} Qb4 {[%emt 0:02:31]} 38. Qe4 {[%emt 0:00:21]} Qc3 {[%emt 0:00:17]} 39. Kg2 {[%emt 0:00:36]} Kf8 {[%emt 0:01:46]} 40. Re3 {[%emt 0:01:02]} Qb2+ {[%emt 0:30:21]} 41. R1e2 {[%emt 0:31:40]} Qa1 {[%emt 0:01:14]} 42. Rc2 {[%emt 0:00:00]} Rxc2+ {[%emt 0:00:00]} 43. Qxc2 {[%emt 0:00:00]} Qd4 {[%emt 0:00:00]} 44. Qd3 {[%emt 0:00:00]} Qc5 {[%emt 0:00:00]} 45. Qe4 {[%emt 0:00:00]} Kg7 {[%emt 0:00:00]} 46. Re2 {[%emt 0:00:00]} Qc3 {[%emt 0:00:00]} 47. Rc2 {[%emt 0:00:00]} Qa1 {[%emt 0:00:00]} 48. Qe3 {[%emt 0:00:00]} b4 {[%emt 0:00:00]} 49. Rd2 {[%emt 0:00:00]} a5 {[%emt 0:00:00]} 50. Qd4+ {[%emt 0:00:00]} Qxd4 {[%emt 0:00:00]} 51. Rxd4 {[%emt 0:00:00]} Rf8 {[%emt 0:00:00]} 52. Re4 {[%emt 0:00:00]} Kf7 {[%emt 0:00:00]} 53. Rc4 {[%emt 0:00:00]} Rb8 {[%emt 0:01:20]} 54. Kf3 {[%emt 0:00:00]} Rb7 {[%emt 0:02:05]} 55. Ke4 {[%emt 0:00:00]} e6 {[%emt 0:02:58]} 56. g4 {[%emt 0:00:00]} Ke7 {[%emt 0:00:17]} 57. Rc2 {[%emt 0:00:00]} Rb5 {[%emt 0:01:19]} 58. dxe6 {[%emt 0:00:34]} Kxe6 {[%emt 0:00:06]} 59. Rc7 {[%emt 0:00:54]} a4 {[%emt 0:00:58]} 60. Rxh7 {[%emt 0:01:41]} Rc5 {[%emt 0:00:29]} 61. f5+ {[%emt 0:00:48]} gxf5+ {[%emt 0:00:03]} 62. gxf5+ {[%emt 0:00:10]} Rxf5 {[%emt 0:00:17]} 63. Rh6+ {[%emt 0:00:04] Kd5+} 1-0

[Event "NOR-chT Codanserien 2017-18"]
[Site "Oslo"]
[Date "2018.01.13"]
[Round "5"]
[White "Flaata, Alexander R"]
[Black "Kyrkjebo, Erlend"]
[Result "1-0"]
[ECO "B23"]
[WhiteElo "2095"]
[BlackElo "2145"]
[Annotator "NA"]
[PlyCount "61"]
[EventDate "2018.??.??"]
[EventType "team-tourn"]
[EventCountry "NOR"]
[SourceTitle "playchess.com"]
[Source "ChessBase"]
[SourceQuality "1"]
[TimeControl "40/5400+30:1800+30"]

1. e4 {[%emt 0:00:00]} c5 {[%emt 0:00:05]} 2. Nc3 {[%emt 0:00:14]} a6 {[%emt 0:01:55]} 3. a4 {[%emt 0:02:14]} Nc6 {[%emt 0:00:50]} 4. f4 {[%emt 0:00:21]} e6 {[%emt 0:03:03]} 5. Bc4 {[%emt 0:02:56]} Nge7 {[%emt 0:03:50]} 6. Nf3 {[%emt 0:01:45]} d5 {[%emt 0:08:30]} 7. Ba2 {[%emt 0:01:01]} dxe4 {[%emt 0:12:44]} 8. Nxe4 {[%emt 0:03:31]} Nf5 {[%emt 0:04:16]} 9. O-O {[%emt 0:01:17]} h5 {[%emt 0:10:18]} 10. d3 {[%emt 0:02:48]} b6 {[%emt 0:05:25]} 11. c3 {[%emt 0:03:56]} Nce7 {[%emt 0:10:05]} 12. Neg5 {[%emt 0:10:25]} Nc6 {[%emt 0:07:25]} 13. Ne5 {[%emt 0:02:17]} Nxe5 {[%emt 0:03:39]} 14. fxe5 {[%emt 0:00:34]} Qc7 {[%emt 0:01:15]} 15. Rxf5 {[%emt 0:05:17]} exf5 {[%emt 0:00:14]} 16. Bxf7+ {[%emt 0:01:52]} Ke7 {[%emt 0:02:10]} 17. Qf3 {[%emt 0:14:48]} Ra7 {[%emt 0:04:00]} 18. d4 {[%emt 0:01:26]} cxd4 {[%emt 0:08:03]} 19. cxd4 {[%emt 0:00:28]} Qd7 {[%emt 0:00:57]} 20. d5 {[%emt 0:05:39]} Bb7 {[%emt 0:04:53]} 21. Be3 {[%emt 0:00:56]} Rh6 {[%emt 0:02:02]} 22. Rc1 {[%emt 0:02:51]} Kd8 {[%emt 0:00:50]} 23. e6 {[%emt 0:02:55]} Qd6 {[%emt 0:02:24]} 24. Bf4 {[%emt 0:03:21]} Qb4 {[%emt 0:00:48]} 25. Bc7+ {[%emt 0:01:47]} Ke7 {[%emt 0:00:11]} 26. d6+ {[%emt 0:00:13]} Kf6 {[%emt 0:00:07]} 27. Bd8+ {[%emt 0:08:57]} Ke5 {[%emt 0:00:08]} 28. Qe3+ {[%emt 0:03:58]} Be4 {[%emt 0:02:44]} 29. Nf3+ {[%emt 0:01:38]} Kxd6 {[%emt 0:00:14]} 30. Qf4+ {[%emt 0:00:19]} Kd5 {[%emt 0:00:14]} 31. Qe5# {[%emt 0:00:10]} 1-0

[Event "NOR-chT Codanserien 2017-18"]
[Site "Oslo"]
[Date "2018.01.13"]
[Round "5"]
[White "Mikalsen, Harald"]
[Black "Hagesather, Paal Vegard"]
[Result "0-1"]
[ECO "A50"]
[WhiteElo "2036"]
[BlackElo "2260"]
[Annotator "NA"]
[PlyCount "98"]
[EventDate "2018.??.??"]
[EventType "team-tourn"]
[EventCountry "NOR"]
[SourceTitle "playchess.com"]
[Source "ChessBase"]
[SourceQuality "1"]
[TimeControl "40/5400+30:1800+30"]

1. d4 {[%emt 0:00:00]} Nf6 {[%emt 0:00:11]} 2. c4 {[%emt 0:00:00]} Nc6 {[%emt 0:00:11]} 3. Nf3 {[%emt 0:01:34]} e6 {[%emt 0:00:08]} 4. Nc3 {[%emt 0:07:24]} Bb4 {[%emt 0:00:08]} 5. a3 {[%emt 0:00:48]} Bxc3+ {[%emt 0:00:08]} 6. bxc3 {[%emt 0:00:06]} d6 {[%emt 0:01:42]} 7. Bg5 {[%emt 0:07:52]} h6 {[%emt 0:00:46]} 8. Bh4 {[%emt 0:02:31]} g5 {[%emt 0:12:23]} 9. Bg3 {[%emt 0:00:12]} Ne4 {[%emt 0:00:47]} 10. Qc2 {[%emt 0:00:56]} f5 {[%emt 0:02:03]} 11. e3 {[%emt 0:05:27]} h5 {[%emt 0:13:20]} 12. h4 {[%emt 0:09:15]} g4 {[%emt 0:02:58]} 13. Ng1 {[%emt 0:06:42]} Nxg3 {[%emt 0:00:50]} 14. fxg3 {[%emt 0:00:07]} Qf6 {[%emt 0:01:49]} 15. Bd3 {[%emt 0:05:41]} b6 {[%emt 0:02:48]} 16. Ne2 {[%emt 0:01:07]} Qh6 {[%emt 0:19:24]} 17. Nf4 {[%emt 0:10:05]} Ne7 {[%emt 0:02:12]} 18. O-O {[%emt 0:08:25]} O-O {[%emt 0:09:51]} 19. Rae1 {[%emt 0:06:45]} c5 {[%emt 0:02:12]} 20. e4 {[%emt 0:01:58]} e5 {[%emt 0:05:47]} 21. dxe5 {[%emt 0:01:03]} dxe5 {[%emt 0:00:23]} 22. Nd5 {[%emt 0:01:30]} Nxd5 {[%emt 0:00:53]} 23. cxd5 {[%emt 0:02:49]} f4 {[%emt 0:00:53]} 24. Qd2 {[%emt 0:01:24]} Qf6 {[%emt 0:04:07]} 25. Bc4 {[%emt 0:04:19]} Kg7 {[%emt 0:01:21]} 26. Rf2 {[%emt 0:01:50]} Bd7 {[%emt 0:00:42]} 27. Ref1 {[%emt 0:00:11]} b5 {[%emt 0:01:48]} 28. Ba2 {[%emt 0:01:04]} c4 {[%emt 0:00:42]} 29. Bb1 {[%emt 0:00:50]} Rae8 {[%emt 0:01:58]} 30. Qe2 {[%emt 0:06:33]} Qb6 {[%emt 0:00:56]} 31. Kh2 {[%emt 0:01:05]} Qd6 {[%emt 0:04:03]} 32. Qd2 {[%emt 0:01:50]} Qe7 {[%emt 0:01:34]} 33. Qe2 {[%emt 0:02:07]} Rf7 {[%emt 0:01:46]} 34. Qc2 {[%emt 0:00:41]} Ref8 {[%emt 0:00:21]} 35. Qd2 {[%emt 0:00:25]} Kg8 {[%emt 0:03:17]} 36. Qc2 {[%emt 0:00:55]} Qxa3 {[%emt 0:00:52]} 37. gxf4 {[%emt 0:00:49]} b4 {[%emt 0:01:19]} 38. f5 {[%emt 0:01:03]} b3 {[%emt 0:00:48]} 39. Qd2 {[%emt 0:00:09]} Qe7 {[%emt 0:00:29]} 40. f6 {[%emt 0:00:29]} Qd6 {[%emt 0:31:19]} 41. Qh6 {[%emt 0:08:20]} a5 {[%emt 0:00:00]} 42. Qg6+ {[%emt 0:05:46]} Kh8 {[%emt 0:00:00]} 43. Rf5 {[%emt 0:00:13]} Bxf5 {[%emt 0:00:00]} 44. Rxf5 {[%emt 0:00:09]} Rh7 {[%emt 0:00:00]} 45. Rxh5 {[%emt 0:05:54]} Qd7 {[%emt 0:00:00]} 46. Rg5 {[%emt 0:11:57]} a4 {[%emt 0:00:00]} 47. Rxg4 {[%emt 0:02:33]} Qf7 {[%emt 0:00:00]} 48. Rg3 {[%emt 0:00:34]} Rxh4+ {[%emt 0:00:00]} 49. Kg1 {[%emt 0:00:22]} Qxf6 {[%emt 0:00:00]} 0-1